[Event "Titled Tuesday Blitz February 14 Late 2023"]
[White "Avinash, Ramesh"]
[Black "Fiorito, Francisco"]
[WhiteFideId "45018340"]
[BlackFideId "180165"]
[WhiteElo "2319"]
[BlackElo "2305"]
[Result "1/2-1/2"]
[Round "10"]
[TimeControl "180+2"]
[Date "2023.02.14"]
[WhiteClock "0:00:36"]
[BlackClock "0:00:38"]

1. e4 {[%clk 0:03:00]}  c5 {[%clk 0:02:59]} 2. Nc3 {[%clk 0:03:00]}  Nc6 {[%clk 0:02:59]} 3. Bb5 {[%clk 0:03:00]}  Nd4 {[%clk 0:02:58]} 4. Nf3 {[%clk 0:03:01]}  g6 {[%clk 0:02:55]} 5. O-O {[%clk 0:03:00]}  Bg7 {[%clk 0:02:54]} 6. Bc4 {[%clk 0:02:59]}  a6 {[%clk 0:02:49]} 7. Nxd4 {[%clk 0:02:57]}  cxd4 {[%clk 0:02:49]} 8. Ne2 {[%clk 0:02:56]}  d6 {[%clk 0:02:46]} 9. c3 {[%clk 0:02:56]}  Nf6 {[%clk 0:02:41]} 10. d3 {[%clk 0:02:53]}  dxc3 {[%clk 0:02:41]} 11. bxc3 {[%clk 0:02:53]}  O-O {[%clk 0:02:41]} 12. Bb3 {[%clk 0:02:51]}  b5 {[%clk 0:02:41]} 13. a4 {[%clk 0:02:47]}  Bb7 {[%clk 0:02:40]} 14. axb5 {[%clk 0:02:43]}  axb5 {[%clk 0:02:41]} 15. Be3 {[%clk 0:02:44]}  Nd7 {[%clk 0:02:39]} 16. Bd4 {[%clk 0:02:43]}  Nc5 {[%clk 0:02:18]} 17. Bxg7 {[%clk 0:02:41]}  Kxg7 {[%clk 0:02:14]} 18. Bc2 {[%clk 0:02:41]}  Qb6 {[%clk 0:02:13]} 19. Nd4 {[%clk 0:02:38]}  e5 {[%clk 0:02:07]} 20. Nb3 {[%clk 0:02:33]}  Na4 {[%clk 0:02:04]} 21. c4 {[%clk 0:02:08]}  Rfc8 {[%clk 0:02:04]} 22. cxb5 {[%clk 0:02:04]}  Nc3 {[%clk 0:02:04]} 23. Qd2 {[%clk 0:02:04]}  Nxb5 {[%clk 0:02:04]} 24. Rxa8 {[%clk 0:02:00]}  Bxa8 {[%clk 0:02:05]} 25. Rc1 {[%clk 0:01:55]}  Nd4 {[%clk 0:02:04]} 26. Nxd4 {[%clk 0:01:54]}  Qxd4 {[%clk 0:02:05]} 27. Bb1 {[%clk 0:01:53]}  Rxc1+ {[%clk 0:02:00]} 28. Qxc1 {[%clk 0:01:54]}  Bb7 {[%clk 0:02:01]} 29. Bc2 {[%clk 0:01:52]}  Ba6 {[%clk 0:02:01]} 30. Qd2 {[%clk 0:01:52]}  Qa1+ {[%clk 0:02:00]} 31. Bd1 {[%clk 0:01:52]}  Bb5 {[%clk 0:02:01]} 32. Kf1 {[%clk 0:01:52]}  h5 {[%clk 0:02:00]} 33. Ke2 {[%clk 0:01:51]}  Qd4 {[%clk 0:02:00]} 34. Qe3 {[%clk 0:01:45]}  Qb4 {[%clk 0:02:00]} 35. f3 {[%clk 0:01:43]}  h4 {[%clk 0:01:57]} 36. Qd2 {[%clk 0:01:42]}  Qa3 {[%clk 0:01:56]} 37. Qc2 {[%clk 0:01:38]}  Ba6 {[%clk 0:01:49]} 38. Qb3 {[%clk 0:01:38]}  Qc1 {[%clk 0:01:43]} 39. Qc2 {[%clk 0:01:37]}  Qa1 {[%clk 0:01:42]} 40. Qd2 {[%clk 0:01:36]}  Qd4 {[%clk 0:01:40]} 41. Qe3 {[%clk 0:01:35]}  Qb4 {[%clk 0:01:39]} 42. Kf2 {[%clk 0:01:33]}  Qb2+ {[%clk 0:01:35]} 43. Be2 {[%clk 0:01:33]}  Bc8 {[%clk 0:01:29]} 44. g3 {[%clk 0:01:33]}  hxg3+ {[%clk 0:01:28]} 45. hxg3 {[%clk 0:01:33]}  Ba6 {[%clk 0:01:27]} 46. f4 {[%clk 0:01:33]}  Qa1 {[%clk 0:01:11]} 47. Kg2 {[%clk 0:01:24]}  Qe1 {[%clk 0:01:05]} 48. Qf2 {[%clk 0:01:16]}  Qd2 {[%clk 0:01:02]} 49. Bf1 {[%clk 0:01:15]}  Qc3 {[%clk 0:00:59]} 50. Be2 {[%clk 0:01:03]}  exf4 {[%clk 0:00:56]} 51. gxf4 {[%clk 0:01:01]}  d5 {[%clk 0:00:49]} 52. Qf3 {[%clk 0:00:54]}  dxe4 {[%clk 0:00:27]} 53. Qxe4 {[%clk 0:00:53]}  Qc8 {[%clk 0:00:24]} 54. Kf2 {[%clk 0:00:49]}  Bb7 {[%clk 0:00:23]} 55. Qe5+ {[%clk 0:00:49]}  Kg8 {[%clk 0:00:23]} 56. Qe3 {[%clk 0:00:42]}  Qc6 {[%clk 0:00:20]} 57. Bf3 {[%clk 0:00:40]}  Qc2+ {[%clk 0:00:20]} 58. Kg3 {[%clk 0:00:41]}  Ba6 {[%clk 0:00:19]} 59. Be4 {[%clk 0:00:30]}  Qc7 {[%clk 0:00:19]} 60. Qd4 {[%clk 0:00:25]}  Bc8 {[%clk 0:00:16]} 61. Qf6 {[%clk 0:00:22]}  Qd7 {[%clk 0:00:11]} 62. f5 {[%clk 0:00:18]}  gxf5 {[%clk 0:00:11]} 63. Qg5+ {[%clk 0:00:18]}  Kf8 {[%clk 0:00:11]} 64. Qh6+ {[%clk 0:00:18]}  Ke7 {[%clk 0:00:12]} 65. Qg5+ {[%clk 0:00:18]}  Kd6 {[%clk 0:00:11]} 66. Qf6+ {[%clk 0:00:17]}  Kc7 {[%clk 0:00:11]} 67. Qe5+ {[%clk 0:00:17]}  Qd6 {[%clk 0:00:08]} 68. Qxd6+ {[%clk 0:00:16]}  Kxd6 {[%clk 0:00:09]} 69. Bf3 {[%clk 0:00:17]}  Ke5 {[%clk 0:00:09]} 70. d4+ {[%clk 0:00:16]}  Kxd4 {[%clk 0:00:06]} 71. Kf4 {[%clk 0:00:17]}  Kc5 {[%clk 0:00:05]} 72. Bh5 {[%clk 0:00:17]}  f6 {[%clk 0:00:05]} 73. Bd1 {[%clk 0:00:17]}  Kd6 {[%clk 0:00:05]} 74. Bh5 {[%clk 0:00:17]}  Be6 {[%clk 0:00:05]} 75. Bd1 {[%clk 0:00:18]}  Kd5 {[%clk 0:00:06]} 76. Bb3+ {[%clk 0:00:17]}  Kd6 {[%clk 0:00:07]} 77. Bc2 {[%clk 0:00:18]}  Bd7 {[%clk 0:00:07]} 78. Bxf5 {[%clk 0:00:17]}  Bxf5 {[%clk 0:00:08]} 79. Kxf5 {[%clk 0:00:18]}  Ke7 {[%clk 0:00:08]} 80. Kf4 {[%clk 0:00:18]}  Kf7 {[%clk 0:00:09]} 81. Kf5 {[%clk 0:00:19]}  Kg7 {[%clk 0:00:10]} 82. Kf4 {[%clk 0:00:20]}  Kh7 {[%clk 0:00:10]} 83. Kf5 {[%clk 0:00:20]}  Kg7 {[%clk 0:00:11]} 84. Kf4 {[%clk 0:00:21]}  Kf8 {[%clk 0:00:12]} 85. Kf5 {[%clk 0:00:21]}  Kf7 {[%clk 0:00:13]} 86. Kf4 {[%clk 0:00:22]}  Ke6 {[%clk 0:00:14]} 87. Ke4 {[%clk 0:00:23]}  Kd6 {[%clk 0:00:15]} 88. Kf5 {[%clk 0:00:23]}  Ke7 {[%clk 0:00:16]} 89. Kf4 {[%clk 0:00:24]}  Ke6 {[%clk 0:00:17]} 90. Ke4 {[%clk 0:00:23]}  f5+ {[%clk 0:00:17]} 91. Kf4 {[%clk 0:00:24]}  Kf6 {[%clk 0:00:18]} 92. Kf3 {[%clk 0:00:24]}  Kg7 {[%clk 0:00:19]} 93. Kf4 {[%clk 0:00:25]}  Kg6 {[%clk 0:00:20]} 94. Kf3 {[%clk 0:00:25]}  Kf6 {[%clk 0:00:21]} 95. Kf4 {[%clk 0:00:25]}  Ke6 {[%clk 0:00:22]} 96. Kf3 {[%clk 0:00:26]}  Kd6 {[%clk 0:00:22]} 97. Kf4 {[%clk 0:00:27]}  Ke6 {[%clk 0:00:23]} 98. Kf3 {[%clk 0:00:27]}  Ke5 {[%clk 0:00:24]} 99. Ke3 {[%clk 0:00:27]}  f4+ {[%clk 0:00:25]} 100. Kf3 {[%clk 0:00:28]}  Kf5 {[%clk 0:00:25]} 101. Kf2 {[%clk 0:00:29]}  Kf6 {[%clk 0:00:26]} 102. Kf3 {[%clk 0:00:29]}  Kg5 {[%clk 0:00:27]} 103. Kf2 {[%clk 0:00:30]}  Kh4 {[%clk 0:00:27]} 104. Kf3 {[%clk 0:00:31]}  Kg5 {[%clk 0:00:28]} 105. Kf2 {[%clk 0:00:32]}  Kg4 {[%clk 0:00:29]} 106. Kg2 {[%clk 0:00:32]}  Kg5 {[%clk 0:00:30]} 107. Kf3 {[%clk 0:00:32]}  Kf5 {[%clk 0:00:30]} 108. Kf2 {[%clk 0:00:32]}  Ke4 {[%clk 0:00:31]} 109. Ke2 {[%clk 0:00:33]}  f3+ {[%clk 0:00:32]} 110. Kf2 {[%clk 0:00:33]}  Kf4 {[%clk 0:00:33]} 111. Kf1 {[%clk 0:00:32]}  Kf5 {[%clk 0:00:32]} 112. Kf2 {[%clk 0:00:32]}  Kg4 {[%clk 0:00:33]} 113. Kf1 {[%clk 0:00:33]}  Kh3 {[%clk 0:00:34]} 114. Kf2 {[%clk 0:00:33]}  Kg4 {[%clk 0:00:35]} 115. Kf1 {[%clk 0:00:34]}  Kf4 {[%clk 0:00:35]} 116. Kf2 {[%clk 0:00:35]}  Ke4 {[%clk 0:00:36]} 117. Kf1 {[%clk 0:00:35]}  Ke3 {[%clk 0:00:37]} 118. Ke1 {[%clk 0:00:36]}  Kf4 {[%clk 0:00:37]} 119. Kf2 {[%clk 0:00:36]}  Kg4 {[%clk 0:00:38]} 1/2-1/2


[Site "https://www.chess.com"]

[Event "Titled Tuesday Blitz February 14 Late 2023"]
[White "benny_aizenberg"]
[Black "Mekhitarian, Krikor Sevag"]
[BlackFideId "2107660"]
[WhiteElo "2558"]
[BlackElo "2537"]
[Result "1/2-1/2"]
[Round "10"]
[TimeControl "180+2"]
[Date "2023.02.14"]
[WhiteClock "0:00:28"]
[BlackClock "0:00:36"]

1. e4 {[%clk 0:03:00]}  c5 {[%clk 0:02:58]} 2. Nf3 {[%clk 0:03:01]}  d6 {[%clk 0:02:59]} 3. c3 {[%clk 0:03:01]}  Nf6 {[%clk 0:02:59]} 4. Bd3 {[%clk 0:02:59]}  Nc6 {[%clk 0:02:51]} 5. h3 {[%clk 0:02:59]}  e5 {[%clk 0:02:45]} 6. Bc2 {[%clk 0:02:57]}  g6 {[%clk 0:02:43]} 7. d4 {[%clk 0:02:57]}  cxd4 {[%clk 0:02:33]} 8. cxd4 {[%clk 0:02:57]}  exd4 {[%clk 0:02:33]} 9. Nxd4 {[%clk 0:02:57]}  Bg7 {[%clk 0:02:34]} 10. O-O {[%clk 0:02:53]}  O-O {[%clk 0:02:34]} 11. Nxc6 {[%clk 0:02:53]}  bxc6 {[%clk 0:02:34]} 12. Nc3 {[%clk 0:02:53]}  Re8 {[%clk 0:02:33]} 13. Bf4 {[%clk 0:02:48]}  d5 {[%clk 0:02:31]} 14. exd5 {[%clk 0:02:48]}  Nxd5 {[%clk 0:02:32]} 15. Nxd5 {[%clk 0:02:47]}  cxd5 {[%clk 0:02:32]} 16. Rb1 {[%clk 0:02:40]}  Be6 {[%clk 0:02:32]} 17. b4 {[%clk 0:02:34]}  d4 {[%clk 0:02:31]} 18. Bb3 {[%clk 0:02:35]}  Bf5 {[%clk 0:02:19]} 19. Rc1 {[%clk 0:02:34]}  Rc8 {[%clk 0:02:15]} 20. Rxc8 {[%clk 0:02:33]}  Qxc8 {[%clk 0:02:14]} 21. Qd2 {[%clk 0:02:30]}  Qa6 {[%clk 0:01:51]} 22. Rc1 {[%clk 0:02:23]}  Re2 {[%clk 0:01:49]} 23. Qd1 {[%clk 0:02:19]}  d3 {[%clk 0:01:48]} 24. Rc7 {[%clk 0:02:12]}  Be6 {[%clk 0:01:30]} 25. Bxe6 {[%clk 0:02:06]}  fxe6 {[%clk 0:01:04]} 26. Rd7 {[%clk 0:01:18]}  Rxa2 {[%clk 0:00:50]} 27. Qxd3 {[%clk 0:01:10]}  Qxd3 {[%clk 0:00:49]} 28. Rxd3 {[%clk 0:01:10]}  Bf8 {[%clk 0:00:47]} 29. b5 {[%clk 0:01:03]}  Bc5 {[%clk 0:00:45]} 30. Be3 {[%clk 0:00:52]}  Bxe3 {[%clk 0:00:44]} 31. Rxe3 {[%clk 0:00:52]}  Kf7 {[%clk 0:00:45]} 32. Rb3 {[%clk 0:00:52]}  Kf6 {[%clk 0:00:37]} 33. b6 {[%clk 0:00:52]}  axb6 {[%clk 0:00:38]} 34. Rxb6 {[%clk 0:00:51]}  g5 {[%clk 0:00:39]} 35. g3 {[%clk 0:00:48]}  h5 {[%clk 0:00:39]} 36. Kg2 {[%clk 0:00:45]}  Ra3 {[%clk 0:00:38]} 37. Rb5 {[%clk 0:00:43]}  Rd3 {[%clk 0:00:38]} 38. f4 {[%clk 0:00:39]}  gxf4 {[%clk 0:00:35]} 39. gxf4 {[%clk 0:00:39]}  h4 {[%clk 0:00:36]} 40. Rh5 {[%clk 0:00:38]}  Rg3+ {[%clk 0:00:36]} 41. Kh2 {[%clk 0:00:37]}  Rf3 {[%clk 0:00:36]} 42. Rxh4 {[%clk 0:00:33]}  Kf5 {[%clk 0:00:36]} 43. Kg2 {[%clk 0:00:33]}  Rxf4 {[%clk 0:00:37]} 44. Rxf4+ {[%clk 0:00:27]}  Kxf4 {[%clk 0:00:37]} 45. Kf2 {[%clk 0:00:28]}  Kg5 {[%clk 0:00:34]} 46. Kf3 {[%clk 0:00:26]}  Kh4 {[%clk 0:00:35]} 47. Kf4 {[%clk 0:00:26]}  Kxh3 {[%clk 0:00:36]} 48. Ke5 {[%clk 0:00:27]}  Kg4 {[%clk 0:00:36]} 49. Kxe6 {[%clk 0:00:28]} 1/2-1/2


[Site "https://www.chess.com"]

[Event "Titled Tuesday Blitz February 14 Late 2023"]
[White "Gutenev, Alexander"]
[Black "Jovic, Stanoje"]
[WhiteFideId "4195540"]
[BlackFideId "905020"]
[WhiteElo "2455"]
[BlackElo "2075"]
[Result "1-0"]
[Round "10"]
[TimeControl "180+2"]
[Date "2023.02.14"]
[WhiteClock "0:00:37"]
[BlackClock "0:00:01"]

1. Nf3 {[%clk 0:02:53]}  Nf6 {[%clk 0:02:59]} 2. Nc3 {[%clk 0:02:52]}  d5 {[%clk 0:02:51]} 3. d4 {[%clk 0:02:52]}  e6 {[%clk 0:02:47]} 4. Bf4 {[%clk 0:02:51]}  Bd6 {[%clk 0:02:47]} 5. e3 {[%clk 0:02:50]}  O-O {[%clk 0:02:47]} 6. Bd3 {[%clk 0:02:50]}  b6 {[%clk 0:02:47]} 7. O-O {[%clk 0:02:50]}  Ba6 {[%clk 0:02:47]} 8. Bxa6 {[%clk 0:02:49]}  Nxa6 {[%clk 0:02:46]} 9. Qe2 {[%clk 0:02:49]}  Nb8 {[%clk 0:02:42]} 10. Nb5 {[%clk 0:02:45]}  Bxf4 {[%clk 0:02:35]} 11. exf4 {[%clk 0:02:46]}  Ne4 {[%clk 0:02:32]} 12. Ne5 {[%clk 0:02:45]}  c6 {[%clk 0:02:29]} 13. Na3 {[%clk 0:02:44]}  f6 {[%clk 0:02:28]} 14. Nd3 {[%clk 0:02:44]}  Qe7 {[%clk 0:02:15]} 15. f3 {[%clk 0:02:43]}  Nd6 {[%clk 0:02:14]} 16. Rfe1 {[%clk 0:02:43]}  Kf7 {[%clk 0:02:10]} 17. c3 {[%clk 0:02:43]}  Nd7 {[%clk 0:02:09]} 18. Nc2 {[%clk 0:02:43]}  a5 {[%clk 0:02:07]} 19. Ne3 {[%clk 0:02:40]}  a4 {[%clk 0:02:00]} 20. Qf2 {[%clk 0:02:40]}  Kg8 {[%clk 0:01:57]} 21. f5 {[%clk 0:02:36]}  e5 {[%clk 0:01:53]} 22. Ng4 {[%clk 0:02:24]}  e4 {[%clk 0:01:51]} 23. fxe4 {[%clk 0:02:15]}  Nxe4 {[%clk 0:01:48]} 24. Qf3 {[%clk 0:02:14]}  Qd6 {[%clk 0:01:44]} 25. Ndf2 {[%clk 0:02:11]}  Ng5 {[%clk 0:01:38]} 26. Qd3 {[%clk 0:02:11]}  Rfe8 {[%clk 0:01:35]} 27. h4 {[%clk 0:02:10]}  Nf7 {[%clk 0:01:35]} 28. g3 {[%clk 0:01:58]}  c5 {[%clk 0:01:35]} 29. Kg2 {[%clk 0:01:58]}  c4 {[%clk 0:01:35]} 30. Qf3 {[%clk 0:01:57]}  a3 {[%clk 0:01:32]} 31. Rxe8+ {[%clk 0:01:52]}  Rxe8 {[%clk 0:01:29]} 32. bxa3 {[%clk 0:01:46]}  Qxa3 {[%clk 0:01:16]} 33. Qxd5 {[%clk 0:01:45]}  Nf8 {[%clk 0:01:10]} 34. Qxc4 {[%clk 0:01:45]}  Qb2 {[%clk 0:01:05]} 35. Rf1 {[%clk 0:01:45]}  Re2 {[%clk 0:01:04]} 36. h5 {[%clk 0:01:40]}  Qxa2 {[%clk 0:00:59]} 37. Qxa2 {[%clk 0:01:38]}  Rxa2 {[%clk 0:01:00]} 38. Rb1 {[%clk 0:01:34]}  Nd7 {[%clk 0:00:58]} 39. Kf1 {[%clk 0:01:29]}  Nd6 {[%clk 0:00:58]} 40. Ne3 {[%clk 0:01:26]}  b5 {[%clk 0:00:57]} 41. g4 {[%clk 0:01:21]}  Nb6 {[%clk 0:00:57]} 42. Ke1 {[%clk 0:01:17]}  Na4 {[%clk 0:00:57]} 43. Nfd1 {[%clk 0:01:15]}  Rh2 {[%clk 0:00:55]} 44. Ra1 {[%clk 0:01:14]}  Nb2 {[%clk 0:00:51]} 45. Nxb2 {[%clk 0:01:13]}  Rxb2 {[%clk 0:00:50]} 46. Ra8+ {[%clk 0:01:13]}  Kf7 {[%clk 0:00:49]} 47. Ra7+ {[%clk 0:01:13]}  Kf8 {[%clk 0:00:49]} 48. Rd7 {[%clk 0:01:12]}  Ne4 {[%clk 0:00:47]} 49. Nd5 {[%clk 0:01:13]}  Rg2 {[%clk 0:00:42]} 50. Rd8+ {[%clk 0:01:06]}  Kf7 {[%clk 0:00:42]} 51. Rd7+ {[%clk 0:01:07]}  Kf8 {[%clk 0:00:42]} 52. Nc7 {[%clk 0:01:07]}  Nxc3 {[%clk 0:00:40]} 53. Ne6+ {[%clk 0:01:06]}  Ke8 {[%clk 0:00:37]} 54. Rxg7 {[%clk 0:01:06]}  b4 {[%clk 0:00:35]} 55. Rb7 {[%clk 0:01:06]}  Nd5 {[%clk 0:00:34]} 56. Rb5 {[%clk 0:01:06]}  Ne3 {[%clk 0:00:28]} 57. h6 {[%clk 0:00:55]}  Nxg4 {[%clk 0:00:27]} 58. Rxb4 {[%clk 0:00:53]}  Nxh6 {[%clk 0:00:27]} 59. Rb8+ {[%clk 0:00:53]}  Ke7 {[%clk 0:00:24]} 60. Rb7+ {[%clk 0:00:54]}  Kd6 {[%clk 0:00:24]} 61. Nf4 {[%clk 0:00:54]}  Rg4 {[%clk 0:00:23]} 62. Rb6+ {[%clk 0:00:54]}  Kc7 {[%clk 0:00:20]} 63. Nd5+ {[%clk 0:00:54]}  Kc8 {[%clk 0:00:20]} 64. Rxf6 {[%clk 0:00:54]}  Rxd4 {[%clk 0:00:19]} 65. Nb6+ {[%clk 0:00:52]}  Kb7 {[%clk 0:00:19]} 66. Rxh6 {[%clk 0:00:53]}  Rf4 {[%clk 0:00:19]} 67. Rf6 {[%clk 0:00:51]}  h5 {[%clk 0:00:18]} 68. Nd5 {[%clk 0:00:51]}  Rf3 {[%clk 0:00:18]} 69. Ke2 {[%clk 0:00:51]}  Ra3 {[%clk 0:00:16]} 70. Ne3 {[%clk 0:00:51]}  h4 {[%clk 0:00:12]} 71. Rh6 {[%clk 0:00:51]}  Ra4 {[%clk 0:00:13]} 72. Kf3 {[%clk 0:00:52]}  Kc7 {[%clk 0:00:13]} 73. Nd5+ {[%clk 0:00:49]}  Kd7 {[%clk 0:00:12]} 74. Nf4 {[%clk 0:00:49]}  Ke7 {[%clk 0:00:09]} 75. Rxh4 {[%clk 0:00:48]}  Kf7 {[%clk 0:00:07]} 76. Kg4 {[%clk 0:00:48]}  Ra1 {[%clk 0:00:07]} 77. Rh7+ {[%clk 0:00:47]}  Kg8 {[%clk 0:00:07]} 78. Rh3 {[%clk 0:00:46]}  Kf7 {[%clk 0:00:05]} 79. Rg3 {[%clk 0:00:39]}  Kf6 {[%clk 0:00:04]} 80. Nh5+ {[%clk 0:00:39]}  Kf7 {[%clk 0:00:04]} 81. Kg5 {[%clk 0:00:39]}  Ra5 {[%clk 0:00:03]} 82. Rb3 {[%clk 0:00:39]}  Ra7 {[%clk 0:00:03]} 83. Rb6 {[%clk 0:00:39]}  Rc7 {[%clk 0:00:03]} 84. Rh6 {[%clk 0:00:38]}  Rc1 {[%clk 0:00:02]} 85. Rh7+ {[%clk 0:00:38]}  Kg8 {[%clk 0:00:02]} 86. Rb7 {[%clk 0:00:37]}  Rg1+ {[%clk 0:00:01]} 87. Kf6 {[%clk 0:00:37]} 1-0


[Site "https://www.chess.com"]

[Event "Titled Tuesday Blitz February 14 Late 2023"]
[White "Ibadov, Dashgyn"]
[Black "Oro, Faustino"]
[WhiteFideId "24107514"]
[BlackFideId "20000197"]
[WhiteElo "2391"]
[BlackElo "2269"]
[Result "1-0"]
[Round "10"]
[TimeControl "180+2"]
[Date "2023.02.14"]
[WhiteClock "0:00:36"]
[BlackClock "0:00:39"]

1. e4 {[%clk 0:03:00]}  e5 {[%clk 0:02:58]} 2. Nf3 {[%clk 0:03:00]}  Nc6 {[%clk 0:02:58]} 3. d4 {[%clk 0:03:00]}  exd4 {[%clk 0:02:59]} 4. Nxd4 {[%clk 0:03:01]}  Bc5 {[%clk 0:02:59]} 5. Nb3 {[%clk 0:03:01]}  Bb6 {[%clk 0:02:59]} 6. Nc3 {[%clk 0:03:02]}  Nf6 {[%clk 0:02:59]} 7. Qe2 {[%clk 0:03:01]}  d6 {[%clk 0:02:58]} 8. Be3 {[%clk 0:03:02]}  O-O {[%clk 0:02:54]} 9. O-O-O {[%clk 0:03:02]}  Be6 {[%clk 0:02:52]} 10. f3 {[%clk 0:03:01]}  Re8 {[%clk 0:02:51]} 11. Kb1 {[%clk 0:02:59]}  Ne5 {[%clk 0:02:49]} 12. Qf2 {[%clk 0:02:40]}  Nfg4 {[%clk 0:02:45]} 13. fxg4 {[%clk 0:02:34]}  Nxg4 {[%clk 0:02:46]} 14. Bxb6 {[%clk 0:02:34]}  Nxf2 {[%clk 0:02:47]} 15. Bxf2 {[%clk 0:02:35]}  Qf6 {[%clk 0:02:39]} 16. Bd4 {[%clk 0:02:29]}  Qg6 {[%clk 0:02:39]} 17. h4 {[%clk 0:02:24]}  h5 {[%clk 0:02:35]} 18. Bd3 {[%clk 0:02:18]}  Bg4 {[%clk 0:02:31]} 19. Rdf1 {[%clk 0:02:05]}  Qe6 {[%clk 0:02:19]} 20. Nd5 {[%clk 0:02:02]}  Qd7 {[%clk 0:02:18]} 21. Bc3 {[%clk 0:01:39]}  c6 {[%clk 0:02:08]} 22. Ne3 {[%clk 0:01:38]}  Be6 {[%clk 0:02:08]} 23. Nf5 {[%clk 0:01:32]}  f6 {[%clk 0:01:55]} 24. Nbd4 {[%clk 0:01:24]}  Bf7 {[%clk 0:01:51]} 25. Rhg1 {[%clk 0:01:19]}  d5 {[%clk 0:01:24]} 26. exd5 {[%clk 0:01:07]}  Bxd5 {[%clk 0:01:23]} 27. g4 {[%clk 0:01:07]}  Be4 {[%clk 0:01:02]} 28. gxh5 {[%clk 0:00:58]}  Bxd3 {[%clk 0:01:01]} 29. cxd3 {[%clk 0:00:56]}  Kh7 {[%clk 0:00:58]} 30. Rxg7+ {[%clk 0:00:48]}  Qxg7 {[%clk 0:00:58]} 31. Nxg7 {[%clk 0:00:49]}  Kxg7 {[%clk 0:00:59]} 32. Nf5+ {[%clk 0:00:45]}  Kh7 {[%clk 0:00:59]} 33. Nd6 {[%clk 0:00:42]}  Re7 {[%clk 0:00:50]} 34. Rxf6 {[%clk 0:00:41]}  Rg8 {[%clk 0:00:47]} 35. Ne4 {[%clk 0:00:39]}  Rg2 {[%clk 0:00:40]} 36. Ng5+ {[%clk 0:00:39]}  Kg8 {[%clk 0:00:40]} 37. Rg6+ {[%clk 0:00:38]}  Kf8 {[%clk 0:00:39]} 38. Nh7+ {[%clk 0:00:36]} 1-0


[Site "https://www.chess.com"]

[Event "Titled Tuesday Blitz February 14 Late 2023"]
[White "Solon, Nathan"]
[Black "Moral Garcia, Serafin"]
[WhiteFideId "2017229"]
[BlackFideId "2201925"]
[WhiteElo "2306"]
[BlackElo "2238"]
[Result "1-0"]
[Round "10"]
[TimeControl "180+2"]
[Date "2023.02.14"]
[WhiteClock "0:00:09"]
[BlackClock "0:00:24"]

1. Nf3 {[%clk 0:03:00]}  Nf6 {[%clk 0:02:55]} 2. g3 {[%clk 0:03:00]}  g6 {[%clk 0:02:54]} 3. b3 {[%clk 0:02:59]}  Bg7 {[%clk 0:02:53]} 4. Bb2 {[%clk 0:02:59]}  c5 {[%clk 0:02:53]} 5. c4 {[%clk 0:02:59]}  O-O {[%clk 0:02:53]} 6. Bg2 {[%clk 0:02:59]}  Nc6 {[%clk 0:02:53]} 7. O-O {[%clk 0:02:58]}  d6 {[%clk 0:02:52]} 8. d4 {[%clk 0:02:58]}  Ne4 {[%clk 0:02:51]} 9. e3 {[%clk 0:02:47]}  Bg4 {[%clk 0:02:51]} 10. h3 {[%clk 0:02:45]}  Bxf3 {[%clk 0:02:50]} 11. Bxf3 {[%clk 0:02:39]}  Ng5 {[%clk 0:02:49]} 12. Bg2 {[%clk 0:02:36]}  Ne6 {[%clk 0:02:47]} 13. Bxc6 {[%clk 0:02:19]}  bxc6 {[%clk 0:02:46]} 14. Na3 {[%clk 0:02:19]}  cxd4 {[%clk 0:02:46]} 15. exd4 {[%clk 0:02:19]}  c5 {[%clk 0:02:45]} 16. Nc2 {[%clk 0:02:19]}  Qb6 {[%clk 0:02:38]} 17. Qd2 {[%clk 0:02:18]}  Nxd4 {[%clk 0:02:35]} 18. Bxd4 {[%clk 0:02:12]}  cxd4 {[%clk 0:02:35]} 19. Rad1 {[%clk 0:02:12]}  e5 {[%clk 0:02:35]} 20. Nb4 {[%clk 0:02:10]}  a5 {[%clk 0:02:29]} 21. Nd5 {[%clk 0:02:10]}  Qc5 {[%clk 0:02:29]} 22. Qd3 {[%clk 0:02:01]}  f5 {[%clk 0:02:23]} 23. f3 {[%clk 0:01:55]}  Rfe8 {[%clk 0:02:21]} 24. Rde1 {[%clk 0:01:43]}  Kh8 {[%clk 0:02:18]} 25. g4 {[%clk 0:01:43]}  Rf8 {[%clk 0:02:07]} 26. Kg2 {[%clk 0:01:40]}  Ra7 {[%clk 0:02:06]} 27. Re2 {[%clk 0:01:13]}  Qa3 {[%clk 0:01:53]} 28. Qc2 {[%clk 0:00:56]}  a4 {[%clk 0:01:48]} 29. b4 {[%clk 0:00:46]}  d3 {[%clk 0:01:34]} 30. Qb2 {[%clk 0:00:46]}  Qxb2 {[%clk 0:01:29]} 31. Rxb2 {[%clk 0:00:47]}  e4 {[%clk 0:01:30]} 32. Rd2 {[%clk 0:00:46]}  Bh6 {[%clk 0:01:27]} 33. Rdd1 {[%clk 0:00:39]}  Re8 {[%clk 0:01:23]} 34. fxe4 {[%clk 0:00:37]}  fxe4 {[%clk 0:01:23]} 35. h4 {[%clk 0:00:26]}  Bg7 {[%clk 0:01:16]} 36. b5 {[%clk 0:00:21]}  Kg8 {[%clk 0:01:02]} 37. Rfe1 {[%clk 0:00:16]}  Bd4 {[%clk 0:00:57]} 38. Rxd3 {[%clk 0:00:15]}  Bc5 {[%clk 0:00:51]} 39. Nf6+ {[%clk 0:00:15]}  Kf7 {[%clk 0:00:49]} 40. Nxe4 {[%clk 0:00:11]}  Rae7 {[%clk 0:00:44]} 41. Ng5+ {[%clk 0:00:11]}  Kg7 {[%clk 0:00:44]} 42. Rxe7+ {[%clk 0:00:10]}  Rxe7 {[%clk 0:00:45]} 43. Kf3 {[%clk 0:00:09]}  Re1 {[%clk 0:00:42]} 44. Ne4 {[%clk 0:00:08]}  Rf1+ {[%clk 0:00:35]} 45. Ke2 {[%clk 0:00:08]}  Ra1 {[%clk 0:00:35]} 46. Nxc5 {[%clk 0:00:08]}  dxc5 {[%clk 0:00:36]} 47. Ra3 {[%clk 0:00:08]}  Kf6 {[%clk 0:00:31]} 48. Rxa4 {[%clk 0:00:08]}  Ke5 {[%clk 0:00:32]} 49. Ra7 {[%clk 0:00:07]}  Kd4 {[%clk 0:00:31]} 50. a4 {[%clk 0:00:07]}  Kxc4 {[%clk 0:00:27]} 51. b6 {[%clk 0:00:07]}  Rb1 {[%clk 0:00:27]} 52. a5 {[%clk 0:00:07]}  Kd4 {[%clk 0:00:25]} 53. Rd7+ {[%clk 0:00:06]}  Ke5 {[%clk 0:00:24]} 54. b7 {[%clk 0:00:07]}  Ke6 {[%clk 0:00:23]} 55. Rc7 {[%clk 0:00:07]}  Kd6 {[%clk 0:00:24]} 56. Rxh7 {[%clk 0:00:08]}  c4 {[%clk 0:00:24]} 57. a6 {[%clk 0:00:08]}  c3 {[%clk 0:00:25]} 58. a7 {[%clk 0:00:09]}  c2 {[%clk 0:00:24]} 59. b8=Q+ {[%clk 0:00:09]} 1-0


[Site "https://www.chess.com"]

[Event "Titled Tuesday Blitz February 14 Late 2023"]
[White "Rorrer, Grayson"]
[Black "Ehlvest, Jaan"]
[WhiteFideId "30944996"]
[BlackFideId "4500016"]
[WhiteElo "2263"]
[BlackElo "2530"]
[Result "1-0"]
[Round "10"]
[TimeControl "180+2"]
[Date "2023.02.14"]
[WhiteClock "0:01:46"]
[BlackClock "0:01:03"]

1. e4 {[%clk 0:02:48]}  c5 {[%clk 0:02:58]} 2. Nf3 {[%clk 0:02:49]}  Nc6 {[%clk 0:02:58]} 3. Bb5 {[%clk 0:02:49]}  g6 {[%clk 0:02:57]} 4. O-O {[%clk 0:02:49]}  Bg7 {[%clk 0:02:57]} 5. c3 {[%clk 0:02:49]}  Nf6 {[%clk 0:02:55]} 6. Re1 {[%clk 0:02:49]}  O-O {[%clk 0:02:53]} 7. d4 {[%clk 0:02:50]}  d5 {[%clk 0:02:53]} 8. e5 {[%clk 0:02:49]}  Ne4 {[%clk 0:02:53]} 9. Be3 {[%clk 0:02:50]}  Qb6 {[%clk 0:02:44]} 10. Bxc6 {[%clk 0:02:49]}  bxc6 {[%clk 0:02:41]} 11. b3 {[%clk 0:02:39]}  cxd4 {[%clk 0:02:04]} 12. cxd4 {[%clk 0:02:39]}  f6 {[%clk 0:02:03]} 13. h3 {[%clk 0:02:23]}  a5 {[%clk 0:02:00]} 14. Nbd2 {[%clk 0:02:21]}  a4 {[%clk 0:01:48]} 15. Nxe4 {[%clk 0:02:19]}  dxe4 {[%clk 0:01:47]} 16. Nd2 {[%clk 0:02:20]}  f5 {[%clk 0:01:41]} 17. g3 {[%clk 0:02:07]}  Be6 {[%clk 0:01:35]} 18. d5 {[%clk 0:02:06]}  Qb5 {[%clk 0:01:26]} 19. dxe6 {[%clk 0:02:04]}  Qxe5 {[%clk 0:01:26]} 20. Rc1 {[%clk 0:02:03]}  Qxe6 {[%clk 0:01:26]} 21. Qc2 {[%clk 0:01:59]}  Qf7 {[%clk 0:01:17]} 22. Qxc6 {[%clk 0:01:56]}  e5 {[%clk 0:01:15]} 23. Qc4 {[%clk 0:01:55]}  f4 {[%clk 0:01:13]} 24. Bc5 {[%clk 0:01:52]}  e3 {[%clk 0:01:03]} 25. fxe3 {[%clk 0:01:46]} 1-0


[Site "https://www.chess.com"]